[Event "Titled Tuesday Blitz February 28 Early 2023"]
[White "Martin Duque, Jesus"]
[Black "Molina, Roberto Junio Brito"]
[WhiteFideId "2208954"]
[BlackFideId "2109450"]
[WhiteElo "2305"]
[BlackElo "2376"]
[Result "0-1"]
[Round "05"]
[TimeControl "180+2"]
[Date "2023.02.28"]
[WhiteClock "0:01:28"]
[BlackClock "0:01:46"]

1. Nf3 {[%clk 0:03:00]}  d5 {[%clk 0:02:59]} 2. b3 {[%clk 0:02:59]}  Bg4 {[%clk 0:02:58]} 3. e3 {[%clk 0:02:59]}  Nd7 {[%clk 0:02:58]} 4. Bb2 {[%clk 0:02:58]}  Ngf6 {[%clk 0:02:52]} 5. d3 {[%clk 0:02:58]}  e6 {[%clk 0:02:51]} 6. h3 {[%clk 0:02:57]}  Bh5 {[%clk 0:02:51]} 7. g4 {[%clk 0:02:57]}  Bg6 {[%clk 0:02:52]} 8. Nh4 {[%clk 0:02:57]}  Bd6 {[%clk 0:02:50]} 9. Nd2 {[%clk 0:02:56]}  Qe7 {[%clk 0:02:49]} 10. g5 {[%clk 0:02:55]}  Nh5 {[%clk 0:02:44]} 11. Rg1 {[%clk 0:02:55]}  h6 {[%clk 0:02:24]} 12. Nxg6 {[%clk 0:02:55]}  fxg6 {[%clk 0:02:24]} 13. Qg4 {[%clk 0:02:51]}  O-O-O {[%clk 0:02:15]} 14. h4 {[%clk 0:02:48]}  Be5 {[%clk 0:02:05]} 15. d4 {[%clk 0:02:48]}  Bd6 {[%clk 0:02:05]} 16. f4 {[%clk 0:02:47]}  hxg5 {[%clk 0:02:01]} 17. hxg5 {[%clk 0:02:47]}  Kb8 {[%clk 0:01:56]} 18. Bd3 {[%clk 0:02:45]}  Qf7 {[%clk 0:01:54]} 19. c4 {[%clk 0:02:41]}  c5 {[%clk 0:01:43]} 20. cxd5 {[%clk 0:02:38]}  exd5 {[%clk 0:01:43]} 21. O-O-O {[%clk 0:02:38]}  cxd4 {[%clk 0:01:40]} 22. Bxd4 {[%clk 0:02:38]}  Bc5 {[%clk 0:01:34]} 23. Nf3 {[%clk 0:02:33]}  Bxd4 {[%clk 0:01:33]} 24. Nxd4 {[%clk 0:02:33]}  Nc5 {[%clk 0:01:31]} 25. Bc2 {[%clk 0:02:29]}  Rhe8 {[%clk 0:01:29]} 26. Rge1 {[%clk 0:02:28]}  Ne4 {[%clk 0:01:23]} 27. Kb2 {[%clk 0:02:17]}  Nf2 {[%clk 0:01:18]} 28. Qf3 {[%clk 0:02:17]}  Nxd1+ {[%clk 0:01:18]} 29. Rxd1 {[%clk 0:02:17]}  a6 {[%clk 0:01:12]} 30. Rh1 {[%clk 0:02:07]}  Ka8 {[%clk 0:01:08]} 31. Bd3 {[%clk 0:02:01]}  Re7 {[%clk 0:01:03]} 32. Rc1 {[%clk 0:01:41]}  Rde8 {[%clk 0:00:59]} 33. Nc2 {[%clk 0:01:39]}  d4 {[%clk 0:00:51]} 34. Bxa6 {[%clk 0:01:29]}  dxe3 {[%clk 0:00:50]} 35. Nb4 {[%clk 0:01:21]}  Qxf4 {[%clk 0:00:44]} 36. Bxb7+ {[%clk 0:00:57]}  Rxb7 {[%clk 0:00:39]} 37. Qc6 {[%clk 0:00:55]}  Qd4+ {[%clk 0:00:19]} 38. Rc3 {[%clk 0:00:54]}  Rd8 {[%clk 0:00:16]} 39. Na6 {[%clk 0:00:51]}  Qb6 {[%clk 0:00:12]} 40. Qa4 {[%clk 0:00:39]}  Qa7 {[%clk 0:00:06]} 41. Rc4 {[%clk 0:00:31]}  e2 {[%clk 0:00:05]} 42. Qc6 {[%clk 0:00:29]}  Qb6 {[%clk 0:00:03]} 43. Nc7+ {[%clk 0:00:20]}  Qxc7 {[%clk 0:00:02]} 44. Qa6+ {[%clk 0:00:13]}  Kb8 {[%clk 0:00:03]} 45. Rxc7 {[%clk 0:00:12]}  Kxc7 {[%clk 0:00:03]} 46. Qxe2 {[%clk 0:00:12]}  Kb8 {[%clk 0:00:03]} 47. Qe5+ {[%clk 0:00:12]}  Rc7 {[%clk 0:00:03]} 48. Qb5+ {[%clk 0:00:12]}  Kc8 {[%clk 0:00:04]} 49. Qa6+ {[%clk 0:00:12]}  Kb8 {[%clk 0:00:04]} 50. Qxg6 {[%clk 0:00:12]}  Nf4 {[%clk 0:00:05]} 51. Qe4 {[%clk 0:00:12]}  Nd3+ {[%clk 0:00:06]} 52. Ka1 {[%clk 0:00:09]}  Nc5 {[%clk 0:00:06]} 53. Qb4+ {[%clk 0:00:08]}  Nb7 {[%clk 0:00:07]} 54. Kb2 {[%clk 0:00:08]}  Rd6 {[%clk 0:00:08]} 55. Qg4 {[%clk 0:00:08]}  Rdc6 {[%clk 0:00:08]} 56. g6 {[%clk 0:00:08]}  Ka7 {[%clk 0:00:09]} 57. Qh5 {[%clk 0:00:08]}  Nc5 {[%clk 0:00:10]} 58. a4 {[%clk 0:00:08]}  Kb6 {[%clk 0:00:11]} 59. b4 {[%clk 0:00:08]}  Nd3+ {[%clk 0:00:11]} 60. Kb3 {[%clk 0:00:07]}  Rc3+ {[%clk 0:00:12]} 61. Ka2 {[%clk 0:00:06]}  Nxb4+ {[%clk 0:00:12]} 62. Kb1 {[%clk 0:00:06]}  Rc1+ {[%clk 0:00:12]} 63. Kb2 {[%clk 0:00:06]}  R1c2+ {[%clk 0:00:13]} 64. Kb3 {[%clk 0:00:07]}  Na6 {[%clk 0:00:13]} 65. Qb5+ {[%clk 0:00:06]}  Ka7 {[%clk 0:00:14]} 66. Qe8 {[%clk 0:00:06]}  R2c6 {[%clk 0:00:14]} 67. Qf7 {[%clk 0:00:06]}  Rxf7 {[%clk 0:00:13]} 68. gxf7 {[%clk 0:00:05]}  Rf6 {[%clk 0:00:14]} 69. a5 {[%clk 0:00:05]}  Rxf7 {[%clk 0:00:14]} 70. Ka4 {[%clk 0:00:05]}  Rb7 {[%clk 0:00:14]} 71. Ka3 {[%clk 0:00:05]}  Rb4 {[%clk 0:00:14]} 72. Ka2 {[%clk 0:00:05]}  Kb7 {[%clk 0:00:15]} 73. Ka3 {[%clk 0:00:06]}  Kc6 {[%clk 0:00:16]} 74. Ka2 {[%clk 0:00:07]}  Kb5 {[%clk 0:00:17]} 75. Ka3 {[%clk 0:00:08]}  Kxa5 {[%clk 0:00:18]} 76. Ka2 {[%clk 0:00:09]}  Kb6 {[%clk 0:00:19]} 77. Ka3 {[%clk 0:00:09]}  Kc5 {[%clk 0:00:20]} 78. Ka2 {[%clk 0:00:10]}  Kc6 {[%clk 0:00:21]} 79. Ka3 {[%clk 0:00:11]}  Kd5 {[%clk 0:00:22]} 80. Ka2 {[%clk 0:00:12]}  Kd6 {[%clk 0:00:23]} 81. Ka3 {[%clk 0:00:13]}  Ke5 {[%clk 0:00:23]} 82. Ka2 {[%clk 0:00:14]}  Ke6 {[%clk 0:00:24]} 83. Ka3 {[%clk 0:00:15]}  Kf5 {[%clk 0:00:25]} 84. Ka2 {[%clk 0:00:16]}  Kf6 {[%clk 0:00:26]} 85. Ka3 {[%clk 0:00:17]}  Kf5 {[%clk 0:00:27]} 86. Ka2 {[%clk 0:00:18]}  Kg5 {[%clk 0:00:28]} 87. Ka3 {[%clk 0:00:18]}  Kg6 {[%clk 0:00:29]} 88. Ka2 {[%clk 0:00:19]}  Kh5 {[%clk 0:00:30]} 89. Ka3 {[%clk 0:00:20]}  Kh6 {[%clk 0:00:31]} 90. Ka2 {[%clk 0:00:21]}  Kh7 {[%clk 0:00:32]} 91. Ka3 {[%clk 0:00:22]}  Kh8 {[%clk 0:00:32]} 92. Ka2 {[%clk 0:00:23]}  Kg8 {[%clk 0:00:33]} 93. Ka3 {[%clk 0:00:24]}  Kf8 {[%clk 0:00:34]} 94. Ka2 {[%clk 0:00:25]}  g6 {[%clk 0:00:35]} 95. Ka3 {[%clk 0:00:26]}  Kg7 {[%clk 0:00:36]} 96. Ka2 {[%clk 0:00:27]}  Kg8 {[%clk 0:00:37]} 97. Ka3 {[%clk 0:00:27]}  Kh7 {[%clk 0:00:38]} 98. Ka2 {[%clk 0:00:28]}  Kh8 {[%clk 0:00:39]} 99. Ka3 {[%clk 0:00:29]}  Kg7 {[%clk 0:00:39]} 100. Ka2 {[%clk 0:00:30]}  Kf6 {[%clk 0:00:40]} 101. Ka3 {[%clk 0:00:31]}  Kg5 {[%clk 0:00:41]} 102. Ka2 {[%clk 0:00:30]}  Kf5 {[%clk 0:00:42]} 103. Ka3 {[%clk 0:00:31]}  Kf4 {[%clk 0:00:43]} 104. Ka2 {[%clk 0:00:32]}  Ke5 {[%clk 0:00:44]} 105. Ka3 {[%clk 0:00:33]}  Ke4 {[%clk 0:00:45]} 106. Ka2 {[%clk 0:00:33]}  Kd5 {[%clk 0:00:46]} 107. Ka3 {[%clk 0:00:34]}  Kd4 {[%clk 0:00:47]} 108. Ka2 {[%clk 0:00:34]}  Ke3 {[%clk 0:00:48]} 109. Ka3 {[%clk 0:00:35]}  Kd2 {[%clk 0:00:48]} 110. Ka2 {[%clk 0:00:36]}  Kd3 {[%clk 0:00:49]} 111. Ka3 {[%clk 0:00:37]}  Ke2 {[%clk 0:00:50]} 112. Ka2 {[%clk 0:00:38]}  Kf2 {[%clk 0:00:51]} 113. Ka3 {[%clk 0:00:39]}  Kf1 {[%clk 0:00:52]} 114. Ka2 {[%clk 0:00:40]}  Kg1 {[%clk 0:00:53]} 115. Ka3 {[%clk 0:00:41]}  Kh2 {[%clk 0:00:54]} 116. Ka2 {[%clk 0:00:42]}  Rf4 {[%clk 0:00:55]} 117. Ka3 {[%clk 0:00:43]}  Nc7 {[%clk 0:00:55]} 118. Ka2 {[%clk 0:00:43]}  Ne6 {[%clk 0:00:56]} 119. Ka3 {[%clk 0:00:44]}  Rd4 {[%clk 0:00:57]} 120. Ka2 {[%clk 0:00:45]}  Kh3 {[%clk 0:00:57]} 121. Ka3 {[%clk 0:00:46]}  Kh4 {[%clk 0:00:58]} 122. Ka2 {[%clk 0:00:47]}  g5 {[%clk 0:00:59]} 123. Ka3 {[%clk 0:00:48]}  Kh5 {[%clk 0:01:00]} 124. Ka2 {[%clk 0:00:49]}  Kh6 {[%clk 0:01:01]} 125. Ka3 {[%clk 0:00:50]}  Kh7 {[%clk 0:01:02]} 126. Ka2 {[%clk 0:00:51]}  Kh8 {[%clk 0:01:03]} 127. Ka3 {[%clk 0:00:52]}  Kg7 {[%clk 0:01:04]} 128. Ka2 {[%clk 0:00:52]}  Kg8 {[%clk 0:01:05]} 129. Ka3 {[%clk 0:00:53]}  Kf7 {[%clk 0:01:05]} 130. Ka2 {[%clk 0:00:54]}  Kf8 {[%clk 0:01:06]} 131. Ka3 {[%clk 0:00:55]}  Ke7 {[%clk 0:01:07]} 132. Ka2 {[%clk 0:00:56]}  Ke8 {[%clk 0:01:08]} 133. Ka3 {[%clk 0:00:57]}  Kd7 {[%clk 0:01:09]} 134. Ka2 {[%clk 0:00:58]}  Kd8 {[%clk 0:01:10]} 135. Ka3 {[%clk 0:00:59]}  Kc7 {[%clk 0:01:11]} 136. Ka2 {[%clk 0:01:00]}  Kc8 {[%clk 0:01:12]} 137. Ka3 {[%clk 0:01:01]}  Kb7 {[%clk 0:01:13]} 138. Ka2 {[%clk 0:01:01]}  Kb8 {[%clk 0:01:14]} 139. Ka3 {[%clk 0:01:02]}  Ka7 {[%clk 0:01:14]} 140. Ka2 {[%clk 0:01:03]}  Ka8 {[%clk 0:01:15]} 141. Ka3 {[%clk 0:01:04]}  Kb7 {[%clk 0:01:16]} 142. Ka2 {[%clk 0:01:05]}  Ka6 {[%clk 0:01:17]} 143. Ka3 {[%clk 0:01:06]}  Kb6 {[%clk 0:01:18]} 144. Ka2 {[%clk 0:01:07]}  Kc5 {[%clk 0:01:19]} 145. Ka3 {[%clk 0:01:08]}  Kc6 {[%clk 0:01:20]} 146. Ka2 {[%clk 0:01:09]}  Kd5 {[%clk 0:01:21]} 147. Ka3 {[%clk 0:01:10]}  Kd6 {[%clk 0:01:22]} 148. Ka2 {[%clk 0:01:10]}  Ke5 {[%clk 0:01:23]} 149. Ka3 {[%clk 0:01:11]}  Rf4 {[%clk 0:01:23]} 150. Ka2 {[%clk 0:01:12]}  Kf5 {[%clk 0:01:24]} 151. Ka3 {[%clk 0:01:13]}  Rf3+ {[%clk 0:01:25]} 152. Ka2 {[%clk 0:01:14]}  Rf2+ {[%clk 0:01:26]} 153. Ka3 {[%clk 0:01:15]}  Rf1 {[%clk 0:01:27]} 154. Ka2 {[%clk 0:01:16]}  Rh1 {[%clk 0:01:28]} 155. Ka3 {[%clk 0:01:17]}  Rh4 {[%clk 0:01:29]} 156. Ka2 {[%clk 0:01:18]}  Rd4 {[%clk 0:01:30]} 157. Ka3 {[%clk 0:01:19]}  g4 {[%clk 0:01:30]} 158. Ka2 {[%clk 0:01:19]}  Kg5 {[%clk 0:01:31]} 159. Ka3 {[%clk 0:01:20]}  Kh5 {[%clk 0:01:32]} 160. Ka2 {[%clk 0:01:21]}  Kh6 {[%clk 0:01:33]} 161. Ka3 {[%clk 0:01:22]}  Kh7 {[%clk 0:01:34]} 162. Ka2 {[%clk 0:01:23]}  Kg6 {[%clk 0:01:35]} 163. Ka3 {[%clk 0:01:24]}  Kg7 {[%clk 0:01:36]} 164. Ka2 {[%clk 0:01:25]}  Kf6 {[%clk 0:01:37]} 165. Ka3 {[%clk 0:01:26]}  Kf7 {[%clk 0:01:37]} 166. Ka2 {[%clk 0:01:27]}  Kf8 {[%clk 0:01:38]} 167. Ka3 {[%clk 0:01:28]}  Ke7 {[%clk 0:01:39]} 168. Ka2 {[%clk 0:01:28]}  Ke8 {[%clk 0:01:40]} 169. Ka3 {[%clk 0:01:29]}  Kd7 {[%clk 0:01:41]} 170. Ka2 {[%clk 0:01:30]}  Kd8 {[%clk 0:01:42]} 171. Ka3 {[%clk 0:01:30]}  Kc7 {[%clk 0:01:43]} 172. Ka2 {[%clk 0:01:31]}  Kc8 {[%clk 0:01:44]} 173. Ka3 {[%clk 0:01:31]}  Kb7 {[%clk 0:01:45]} 174. Ka2 {[%clk 0:01:31]}  Kb8 {[%clk 0:01:46]} 175. Ka3 {[%clk 0:01:30]}  Ka7 {[%clk 0:01:46]} 176. Ka2 {[%clk 0:01:28]} 0-1


[Site "https://www.chess.com"]

[Event "Titled Tuesday Blitz February 28 Early 2023"]
[White "Harsh Suresh"]
[Black "Dragomirescu, Angela"]
[WhiteFideId "45018464"]
[BlackFideId "1209914"]
[WhiteElo "2227"]
[BlackElo "2171"]
[Result "1-0"]
[Round "05"]
[TimeControl "180+2"]
[Date "2023.02.28"]
[WhiteClock "0:00:05"]
[BlackClock "0:00:25"]

1. e4 {[%clk 0:03:00]}  c5 {[%clk 0:02:59]} 2. Nc3 {[%clk 0:03:00]}  d6 {[%clk 0:02:59]} 3. f4 {[%clk 0:02:59]}  Nc6 {[%clk 0:02:59]} 4. Nf3 {[%clk 0:02:59]}  g6 {[%clk 0:02:59]} 5. Bc4 {[%clk 0:02:59]}  Bg7 {[%clk 0:02:58]} 6. O-O {[%clk 0:02:59]}  Nf6 {[%clk 0:02:57]} 7. d3 {[%clk 0:02:58]}  O-O {[%clk 0:02:57]} 8. Qe1 {[%clk 0:02:48]}  Nd4 {[%clk 0:02:47]} 9. Nxd4 {[%clk 0:02:47]}  cxd4 {[%clk 0:02:48]} 10. Nd5 {[%clk 0:02:48]}  e6 {[%clk 0:02:44]} 11. Nxf6+ {[%clk 0:02:43]}  Qxf6 {[%clk 0:02:45]} 12. Bb3 {[%clk 0:02:41]}  Bd7 {[%clk 0:02:27]} 13. Bd2 {[%clk 0:02:40]}  Bc6 {[%clk 0:02:26]} 14. Bb4 {[%clk 0:02:28]}  Rfd8 {[%clk 0:02:16]} 15. Bxd6 {[%clk 0:02:23]}  Rxd6 {[%clk 0:02:11]} 16. e5 {[%clk 0:02:23]}  Qe7 {[%clk 0:02:11]} 17. exd6 {[%clk 0:02:23]}  Qxd6 {[%clk 0:02:11]} 18. a4 {[%clk 0:02:19]}  Rc8 {[%clk 0:02:07]} 19. a5 {[%clk 0:02:13]}  a6 {[%clk 0:01:40]} 20. Qf2 {[%clk 0:02:09]}  h5 {[%clk 0:01:34]} 21. Qd2 {[%clk 0:01:56]}  Bh6 {[%clk 0:01:33]} 22. Qf2 {[%clk 0:01:49]}  Kg7 {[%clk 0:01:32]} 23. Rae1 {[%clk 0:01:46]}  Rd8 {[%clk 0:01:21]} 24. Re5 {[%clk 0:01:42]}  Qc7 {[%clk 0:01:18]} 25. Rfe1 {[%clk 0:01:39]}  Kg8 {[%clk 0:01:15]} 26. Qg3 {[%clk 0:01:19]}  Kh7 {[%clk 0:01:05]} 27. Bxe6 {[%clk 0:00:51]}  Bg7 {[%clk 0:01:05]} 28. Bb3 {[%clk 0:00:21]}  Bxe5 {[%clk 0:01:04]} 29. fxe5 {[%clk 0:00:22]}  Bd5 {[%clk 0:00:56]} 30. Bxd5 {[%clk 0:00:17]}  Rxd5 {[%clk 0:00:57]} 31. Qf3 {[%clk 0:00:14]}  Rxe5 {[%clk 0:00:51]} 32. Rxe5 {[%clk 0:00:14]}  Qxe5 {[%clk 0:00:52]} 33. Qxf7+ {[%clk 0:00:14]}  Kh6 {[%clk 0:00:47]} 34. Qf8+ {[%clk 0:00:13]}  Kg5 {[%clk 0:00:38]} 35. Qf2 {[%clk 0:00:05]}  Qxa5 {[%clk 0:00:33]} 36. h4+ {[%clk 0:00:05]}  Kh6 {[%clk 0:00:31]} 37. Qxd4 {[%clk 0:00:05]}  Qe1+ {[%clk 0:00:29]} 38. Kh2 {[%clk 0:00:05]}  Qd2 {[%clk 0:00:25]} 39. Qh8# {[%clk 0:00:05]} 1-0


[Site "https://www.chess.com"]

[Event "Titled Tuesday Blitz February 28 Early 2023"]
[White "Garakov, Mikhael"]
[Black "Maximov, Dmitry"]
[WhiteFideId "4169034"]
[BlackFideId "14105659"]
[WhiteElo "2347"]
[BlackElo "2494"]
[Result "1-0"]
[Round "05"]
[TimeControl "180+2"]
[Date "2023.02.28"]
[WhiteClock "0:00:07"]
[BlackClock "0:00:05"]

1. e4 {[%clk 0:03:00]}  c5 {[%clk 0:02:59]} 2. Nf3 {[%clk 0:03:00]}  d6 {[%clk 0:02:59]} 3. d4 {[%clk 0:02:59]}  cxd4 {[%clk 0:02:59]} 4. Nxd4 {[%clk 0:03:00]}  Nf6 {[%clk 0:02:59]} 5. Nc3 {[%clk 0:03:00]}  a6 {[%clk 0:02:58]} 6. f4 {[%clk 0:03:00]}  e6 {[%clk 0:02:55]} 7. Qf3 {[%clk 0:02:56]}  Be7 {[%clk 0:02:53]} 8. Be3 {[%clk 0:02:50]}  Qc7 {[%clk 0:02:51]} 9. g4 {[%clk 0:02:40]}  b5 {[%clk 0:02:39]} 10. g5 {[%clk 0:02:39]}  Nfd7 {[%clk 0:02:39]} 11. Bd3 {[%clk 0:02:30]}  b4 {[%clk 0:02:35]} 12. Nce2 {[%clk 0:02:29]}  Bb7 {[%clk 0:02:34]} 13. f5 {[%clk 0:02:25]}  e5 {[%clk 0:02:12]} 14. Ne6 {[%clk 0:02:23]}  fxe6 {[%clk 0:01:57]} 15. fxe6 {[%clk 0:02:24]}  Rf8 {[%clk 0:01:27]} 16. Qh5+ {[%clk 0:02:01]}  g6 {[%clk 0:01:19]} 17. Qxh7 {[%clk 0:02:01]}  Nc5 {[%clk 0:01:18]} 18. Qxg6+ {[%clk 0:01:59]}  Kd8 {[%clk 0:01:17]} 19. h4 {[%clk 0:01:49]}  Qa5 {[%clk 0:01:02]} 20. Bxc5 {[%clk 0:01:33]}  Qxc5 {[%clk 0:01:02]} 21. O-O-O {[%clk 0:01:32]}  Nc6 {[%clk 0:01:00]} 22. Kb1 {[%clk 0:01:21]}  Kc7 {[%clk 0:00:59]} 23. h5 {[%clk 0:01:20]}  Rg8 {[%clk 0:00:56]} 24. Qf7 {[%clk 0:01:04]}  Raf8 {[%clk 0:00:54]} 25. g6 {[%clk 0:01:04]}  Kb6 {[%clk 0:00:18]} 26. h6 {[%clk 0:01:00]}  Rxf7 {[%clk 0:00:16]} 27. exf7 {[%clk 0:01:00]}  Rxg6 {[%clk 0:00:16]} 28. h7 {[%clk 0:01:00]}  Rf6 {[%clk 0:00:14]} 29. h8=Q {[%clk 0:00:58]}  Rxf7 {[%clk 0:00:14]} 30. Qe8 {[%clk 0:00:52]}  Rf8 {[%clk 0:00:14]} 31. Qg6 {[%clk 0:00:50]}  a5 {[%clk 0:00:13]} 32. Rh7 {[%clk 0:00:37]}  a4 {[%clk 0:00:12]} 33. Nc1 {[%clk 0:00:25]}  a3 {[%clk 0:00:11]} 34. Nb3 {[%clk 0:00:23]}  Qe3 {[%clk 0:00:11]} 35. Qe6 {[%clk 0:00:22]}  Qf3 {[%clk 0:00:06]} 36. Rc1 {[%clk 0:00:16]}  axb2 {[%clk 0:00:06]} 37. Kxb2 {[%clk 0:00:16]}  Rf6 {[%clk 0:00:06]} 38. Qc4 {[%clk 0:00:12]}  Qe3 {[%clk 0:00:06]} 39. Qb5+ {[%clk 0:00:09]}  Ka7 {[%clk 0:00:06]} 40. Na5 {[%clk 0:00:08]}  Qd4+ {[%clk 0:00:06]} 41. Kb1 {[%clk 0:00:07]}  Qc3 {[%clk 0:00:03]} 42. Nxc6+ {[%clk 0:00:07]}  Qxc6 {[%clk 0:00:02]} 43. Qxc6 {[%clk 0:00:07]}  Bxc6 {[%clk 0:00:02]} 44. Rxe7+ {[%clk 0:00:08]}  Kb6 {[%clk 0:00:03]} 45. Kb2 {[%clk 0:00:07]}  Kc5 {[%clk 0:00:04]} 46. Kb3 {[%clk 0:00:05]}  Rf2 {[%clk 0:00:03]} 47. Rc7 {[%clk 0:00:05]}  Kb6 {[%clk 0:00:03]} 48. Rxc6+ {[%clk 0:00:05]}  Kxc6 {[%clk 0:00:04]} 49. Kxb4 {[%clk 0:00:06]}  Rf8 {[%clk 0:00:04]} 50. a4 {[%clk 0:00:06]}  Rb8+ {[%clk 0:00:04]} 51. Bb5+ {[%clk 0:00:06]}  Kc7 {[%clk 0:00:05]} 52. c4 {[%clk 0:00:05]}  Rg8 {[%clk 0:00:04]} 53. c5 {[%clk 0:00:05]}  Rg4 {[%clk 0:00:04]} 54. Rc4 {[%clk 0:00:05]}  Rg1 {[%clk 0:00:04]} 55. cxd6+ {[%clk 0:00:04]}  Kxd6 {[%clk 0:00:04]} 56. Ka5 {[%clk 0:00:05]}  Rb1 {[%clk 0:00:04]} 57. Kb6 {[%clk 0:00:05]}  Rd1 {[%clk 0:00:03]} 58. a5 {[%clk 0:00:05]}  Rd4 {[%clk 0:00:04]} 59. Rxd4+ {[%clk 0:00:06]}  exd4 {[%clk 0:00:04]} 60. a6 {[%clk 0:00:07]}  Ke5 {[%clk 0:00:05]} 61. a7 {[%clk 0:00:07]} 1-0


[Site "https://www.chess.com"]

[Event "Titled Tuesday Blitz February 28 Early 2023"]
[White "Eswaran, Ashritha"]
[Black "Kilic, Eray"]
[WhiteFideId "2080788"]
[BlackFideId "44517173"]
[WhiteElo "2532"]
[BlackElo "2328"]
[Result "0-1"]
[Round "05"]
[TimeControl "180+2"]
[Date "2023.02.28"]
[WhiteClock "0:00:27"]
[BlackClock "0:00:12"]

1. e4 {[%clk 0:03:00]}  c5 {[%clk 0:03:00]} 2. Nf3 {[%clk 0:02:59]}  d6 {[%clk 0:03:00]} 3. d4 {[%clk 0:02:59]}  cxd4 {[%clk 0:03:01]} 4. Nxd4 {[%clk 0:02:59]}  Nf6 {[%clk 0:03:01]} 5. Nc3 {[%clk 0:02:59]}  a6 {[%clk 0:03:01]} 6. Be3 {[%clk 0:02:58]}  e5 {[%clk 0:03:01]} 7. Nf3 {[%clk 0:02:58]}  Qc7 {[%clk 0:03:01]} 8. a4 {[%clk 0:02:58]}  Be7 {[%clk 0:03:01]} 9. a5 {[%clk 0:02:58]}  O-O {[%clk 0:03:01]} 10. Be2 {[%clk 0:02:58]}  Bd8 {[%clk 0:02:52]} 11. O-O {[%clk 0:02:57]}  Nc6 {[%clk 0:02:52]} 12. Bg5 {[%clk 0:02:56]}  Be6 {[%clk 0:02:47]} 13. Bxf6 {[%clk 0:02:45]}  Bxf6 {[%clk 0:02:48]} 14. Nd5 {[%clk 0:02:41]}  Bxd5 {[%clk 0:02:33]} 15. Qxd5 {[%clk 0:02:42]}  Rac8 {[%clk 0:02:29]} 16. c3 {[%clk 0:02:40]}  Rfd8 {[%clk 0:02:19]} 17. Rfd1 {[%clk 0:02:26]}  Ne7 {[%clk 0:02:11]} 18. Qd3 {[%clk 0:02:25]}  d5 {[%clk 0:02:10]} 19. exd5 {[%clk 0:02:17]}  Nxd5 {[%clk 0:01:52]} 20. Qe4 {[%clk 0:02:15]}  Nf4 {[%clk 0:01:51]} 21. Bf1 {[%clk 0:02:12]}  g6 {[%clk 0:01:42]} 22. g3 {[%clk 0:02:07]}  Ne6 {[%clk 0:01:42]} 23. Rxd8+ {[%clk 0:02:01]}  Rxd8 {[%clk 0:01:41]} 24. Re1 {[%clk 0:01:55]}  Nc5 {[%clk 0:01:26]} 25. Qc4 {[%clk 0:01:50]}  Rc8 {[%clk 0:01:06]} 26. Bh3 {[%clk 0:01:41]}  Nd7 {[%clk 0:00:27]} 27. Qxc7 {[%clk 0:01:36]}  Rxc7 {[%clk 0:00:28]} 28. Bxd7 {[%clk 0:01:36]}  Rxd7 {[%clk 0:00:29]} 29. Nxe5 {[%clk 0:01:35]}  Rd5 {[%clk 0:00:29]} 30. Nc4 {[%clk 0:01:30]}  Rc5 {[%clk 0:00:28]} 31. Re4 {[%clk 0:01:20]}  Kg7 {[%clk 0:00:29]} 32. Kg2 {[%clk 0:01:17]}  Bd8 {[%clk 0:00:27]} 33. b4 {[%clk 0:01:16]}  Rc6 {[%clk 0:00:27]} 34. Kf3 {[%clk 0:01:12]}  Bf6 {[%clk 0:00:26]} 35. Ke3 {[%clk 0:01:08]}  Bxc3 {[%clk 0:00:26]} 36. Nb6 {[%clk 0:01:07]}  Bf6 {[%clk 0:00:24]} 37. Nd5 {[%clk 0:01:04]}  Bg5+ {[%clk 0:00:18]} 38. f4 {[%clk 0:01:03]}  Bd8 {[%clk 0:00:18]} 39. Kd3 {[%clk 0:01:00]}  Rd6 {[%clk 0:00:17]} 40. Kc4 {[%clk 0:01:00]}  Rc6+ {[%clk 0:00:18]} 41. Kd3 {[%clk 0:00:58]}  Rc1 {[%clk 0:00:16]} 42. Re8 {[%clk 0:00:56]}  Bf6 {[%clk 0:00:15]} 43. Rb8 {[%clk 0:00:52]}  Rd1+ {[%clk 0:00:14]} 44. Ke4 {[%clk 0:00:52]}  Rd4+ {[%clk 0:00:14]} 45. Ke3 {[%clk 0:00:45]}  Rxd5 {[%clk 0:00:15]} 46. Rxb7 {[%clk 0:00:42]}  Bc3 {[%clk 0:00:15]} 47. Rb6 {[%clk 0:00:37]}  Rb5 {[%clk 0:00:11]} 48. Rxb5 {[%clk 0:00:34]}  axb5 {[%clk 0:00:12]} 49. a6 {[%clk 0:00:35]}  Bxb4 {[%clk 0:00:13]} 50. Kd4 {[%clk 0:00:32]}  Be1 {[%clk 0:00:13]} 51. Kc5 {[%clk 0:00:27]}  b4 {[%clk 0:00:13]} 52. Kc4 {[%clk 0:00:25]}  Bf2 {[%clk 0:00:12]} 53. Kxb4 {[%clk 0:00:25]}  Kf6 {[%clk 0:00:13]} 54. Kb5 {[%clk 0:00:22]}  Kf5 {[%clk 0:00:13]} 55. Kc6 {[%clk 0:00:22]}  Kg4 {[%clk 0:00:13]} 56. Kd6 {[%clk 0:00:23]}  f5 {[%clk 0:00:13]} 57. Ke7 {[%clk 0:00:24]}  Kh3 {[%clk 0:00:10]} 58. Kf6 {[%clk 0:00:25]}  Kxh2 {[%clk 0:00:10]} 59. Kg7 {[%clk 0:00:25]}  Kxg3 {[%clk 0:00:11]} 60. Kxh7 {[%clk 0:00:25]}  Kxf4 {[%clk 0:00:11]} 61. Kxg6 {[%clk 0:00:26]}  Ba7 {[%clk 0:00:11]} 62. Kh5 {[%clk 0:00:26]}  Kg3 {[%clk 0:00:12]} 63. Kg5 {[%clk 0:00:27]}  f4 {[%clk 0:00:12]} 0-1


[Site "https://www.chess.com"]